bitfinex-derivatives/quotes_BTCF0:USTF0_20250427
["timestamp","ask_amount","ask_price","bid_price","bid_amount"]
[1745762590248,0.5,94148.0,94147.0,0.6187017]
[1745762590457,0.5,94148.0,94147.0,0.6217017]
[1745762590849,0.5,94148.0,94147.0,0.5154857]
[1745762591044,0.7123635,94148.0,94147.0,0.1752]
[1745762591353,0.7123635,94148.0,94147.0,0.126]
[1745762591753,0.8088635,94148.0,94147.0,0.126]
[1745762592142,0.8088635,94148.0,94147.0,0.006]
[1745762594263,0.8088635,94148.0,94147.0,0.005]
[1745762594442,0.8088635,94148.0,94147.0,0.002]
[1745762594647,0.8088635,94148.0,94147.0,0.004]
[1745762595650,0.8088635,94148.0,94147.0,0.2163657]
[1745762595853,0.8088635,94148.0,94147.0,0.004]
[1745762596546,0.8088635,94148.0,94147.0,0.2163657]
[1745762601458,0.8088635,94148.0,94147.0,0.2666657]
[1745762601958,0.7599635,94148.0,94147.0,0.2666657]
[1745762602164,0.5,94148.0,94147.0,0.2666657]
[1745762602366,0.7123635,94148.0,94147.0,0.2666657]
[1745762603160,0.7123635,94148.0,94147.0,0.3866657]
[1745762609168,0.7123635,94148.0,94147.0,0.2666657]
[1745762609365,0.7616635,94148.0,94147.0,0.2666657]
[1745762610163,0.7123635,94148.0,94147.0,0.2666657]
[1745762610364,0.7123635,94148.0,94147.0,0.3353457]
[1745762612962,0.7612635,94148.0,94147.0,0.3353457]
[1745762613865,0.7612635,94148.0,94147.0,0.07268]
[1745762614062,0.9305635,94148.0,94147.0,0.07268]
[1745762615163,0.9305635,94148.0,94147.0,0.004]
[1745762615357,0.212377,94142.0,94141.0,0.06868]
[1745762616270,0.308377,94142.0,94141.0,0.06868]
[1745762616976,0.808377,94142.0,94141.0,0.07168]
[1745762617162,0.808377,94142.0,94141.0,0.07468]
[1745762618973,0.808377,94142.0,94141.0,0.2870592]
[1745762620872,0.808377,94142.0,94141.0,0.006]
[1745762621072,0.808377,94142.0,94131.0,0.0530999]
[1745762621073,0.2124086,94128.0,94109.0,0.3608]
[1745762621260,0.2124086,94128.0,94123.0,0.00805145]
[1745762621261,0.5732086,94128.0,94123.0,0.00805145]
[1745762621461,0.2124176,94124.0,94123.0,0.00805145]
[1745762621666,0.2124537,94108.0,94107.0,0.0497]
[1745762621867,0.2124537,94108.0,94107.0,0.06864]
[1745762621868,0.2655675,94108.0,94107.0,0.06864]
[1745762622068,0.2124695,94101.0,94094.0,0.06864]
[1745762622362,0.5732695,94101.0,94096.0,0.21248]
[1745762622560,0.5732695,94101.0,94094.0,0.06864]
[1745762622875,0.5732695,94101.0,94088.0,0.07023416]
[1745762623273,0.7419695,94101.0,94093.0,0.2124864]
[1745762623471,0.7419695,94101.0,94094.0,0.2124842]
[1745762624369,0.7419695,94101.0,94100.0,0.00406269]
[1745762624565,1.2419695,94101.0,94100.0,0.00406269]
[1745762624767,1.2419695,94101.0,94100.0,0.01006269]
[1745762625474,1.2419695,94101.0,94100.0,0.00406269]
[1745762625677,1.2419695,94101.0,94100.0,0.00606269]
[1745762626867,1.2419695,94101.0,94100.0,0.21853449]
[1745762627262,1.1219695,94101.0,94100.0,0.21853449]
[1745762636866,1.1219695,94101.0,94100.0,0.00606269]
[1745762637473,1.1219695,94101.0,94100.0,0.21853449]
[1745762640571,0.7611695,94101.0,94100.0,0.21853449]
[1745762640764,1.1219695,94101.0,94100.0,0.21853449]
[1745762641779,1.1219695,94101.0,94100.0,0.00606269]
[1745762642774,0.2124763,94098.0,94097.0,0.00531364]
[1745762643170,0.3324763,94098.0,94097.0,0.00531364]
[1745762643566,0.8324763,94098.0,94097.0,0.00531364]
[1745762643879,0.8324763,94098.0,94088.0,0.00159416]
[1745762643880,0.2124966,94089.0,94088.0,0.00159416]
[1745762644078,0.2125079,94084.0,94083.0,0.06864]
[1745762644478,0.5733079,94084.0,94083.0,0.06864]
[1745762644978,0.6701079,94084.0,94083.0,0.06864]
[1745762645773,0.6701079,94084.0,94083.0,0.07464]
[1745762646173,1.1701079,94084.0,94083.0,0.08064]
[1745762651383,1.1701079,94084.0,94083.0,0.2931502]
[1745762652986,0.8093079,94084.0,94083.0,0.2931502]
[1745762653185,1.1701079,94084.0,94083.0,0.2931502]
[1745762653775,1.1701079,94084.0,94083.0,0.08064]
[1745762655276,0.8093079,94084.0,94083.0,0.08064]
[1745762655484,1.1701079,94084.0,94083.0,0.08064]
[1745762658992,0.8093079,94084.0,94083.0,0.08064]
[1745762659187,1.1701079,94084.0,94083.0,0.08064]
[1745762659682,1.1701079,94084.0,94067.0,0.36611533]
[1745762659683,0.2125373,94071.0,94068.0,0.0686]
[1745762660198,0.2125373,94071.0,94064.0,1.1858578]
[1745762660199,0.2125712,94056.0,94055.0,0.00159481]
[1745762661192,0.3051712,94056.0,94055.0,0.00159481]
[1745762662294,0.3051712,94056.0,94055.0,0.00859481]
[1745762662595,0.8061712,94056.0,94055.0,0.01559481]
[1745762663098,0.8051712,94056.0,94055.0,0.00459481]
[1745762663289,0.8051712,94056.0,94055.0,0.00759481]
[1745762667295,1.1659712,94056.0,94055.0,0.00759481]
[1745762672301,1.1659712,94056.0,94045.0,0.0686]
[1745762672302,0.2125938,94046.0,94045.0,0.0686]
[1745762672888,0.2125938,94046.0,94041.0,0.0464]
[1745762672889,0.2126028,94042.0,94041.0,0.0464]
[1745762673495,0.3066028,94042.0,94041.0,0.0464]
[1745762674292,0.8066028,94042.0,94041.0,0.0464]
[1745762674600,0.8066028,94042.0,94041.0,0.2590051]
[1745762674805,0.7602028,94042.0,94041.0,0.3091051]
[1745762675006,0.7126028,94042.0,94041.0,0.3091051]
[1745762675308,0.7126028,94042.0,94041.0,0.4291051]
[1745762675608,0.7596028,94042.0,94041.0,0.4411051]
[1745762676199,0.7596028,94042.0,94041.0,0.3211051]
[1745762678302,0.7596028,94042.0,94041.0,0.4411051]
[1745762679289,0.7596028,94042.0,94041.0,0.3211051]
[1745762681991,0.8088028,94042.0,94041.0,0.3211051]
[1745762686003,0.8088028,94042.0,94041.0,0.1085]
[1745762687298,0.8088028,94042.0,94041.0,0.3211051]
[1745762688609,0.8088028,94042.0,94041.0,0.1085]
[1745762691821,0.8088028,94042.0,94041.0,0.0584]
[1745762692905,0.8088028,94042.0,94041.0,0.012]
[1745762694001,0.8088028,94042.0,94030.0,0.06856]
[1745762694002,0.0531533,94038.0,94030.0,0.06856]
[1745762694205,0.2126277,94031.0,94030.0,0.06856]
[1745762695000,0.3096277,94031.0,94030.0,0.07756]
[1745762695706,0.3096277,94031.0,94030.0,0.29019]
[1745762696105,0.8096277,94031.0,94030.0,0.29019]
[1745762696415,0.81045902,94031.0,94030.0,0.29719]
[1745762696812,0.81045902,94031.0,94030.0,0.29019]
[1745762697012,0.81145902,94031.0,94030.0,0.29719]
[1745762697906,0.71445902,94031.0,94030.0,0.29719]
[1745762698102,0.71445902,94031.0,94030.0,0.41719]
[1745762699520,0.71445902,94031.0,94030.0,0.41723]
[1745762699721,0.71445902,94031.0,94030.0,0.42723]
[1745762701113,0.76425902,94031.0,94030.0,0.42723]
[1745762701315,0.81295902,94031.0,94030.0,0.136]
[1745762701611,0.81295902,94031.0,94030.0,0.2046]
[1745762702210,0.81295902,94031.0,94030.0,0.0846]
[1745762704027,0.81295902,94031.0,94030.0,0.29723]
[1745762711518,0.81295902,94031.0,94030.0,0.0846]
[1745762712014,0.81295902,94031.0,94030.0,0.29723]
[1745762712521,0.81295902,94031.0,94030.0,0.0846]
[1745762712720,0.81295902,94031.0,94023.0,0.00159483]
[1745762712721,0.2126435,94024.0,94023.0,0.00159483]
[1745762713020,0.5734435,94024.0,94023.0,0.00159483]
[1745762713614,0.6654435,94024.0,94023.0,0.00159483]
[1745762713925,1.1654435,94024.0,94023.0,0.00159483]
[1745762714127,1.1664435,94024.0,94023.0,0.00859483]
[1745762714315,1.1674435,94024.0,94023.0,0.01559483]
[1745762717128,0.2126526,94020.0,94019.0,0.0686]
[1745762718027,0.3092526,94020.0,94019.0,0.0686]
[1745762718532,0.3102526,94020.0,94019.0,0.0726]
[1745762719028,0.8102526,94020.0,94019.0,0.0726]
[1745762719416,0.8112526,94020.0,94019.0,0.0726]
[1745762720623,1.1720526,94020.0,94019.0,0.0726]
[1745762721820,0.0531669,94014.0,94010.0,0.00106371]
[1745762722021,0.2126729,94011.0,94010.0,0.00106371]
[1745762722519,0.2126797,94008.0,94007.0,0.00531872]
[1745762723927,0.001,94008.0,94007.0,0.21800072]
[1745762724237,0.001,94008.0,94007.0,0.43420072]
[1745762724526,0.2146797,94008.0,94007.0,0.39120072]
[1745762724726,0.6236797,94008.0,94007.0,0.17851872]
[1745762724928,0.6236797,94008.0,94007.0,0.39120072]
[1745762725319,1.1236797,94008.0,94007.0,0.27120072]
[1745762726323,0.8628,94008.0,94007.0,0.27120072]
[1745762726530,0.8628,94008.0,94007.0,0.29120072]
[1745762726833,0.502,94008.0,94007.0,0.64757672]
[1745762727018,0.31207744,94008.0,94007.0,1.22634672]
[1745762727224,0.17847464,94008.0,94007.0,1.34634672]
[1745762728324,0.00531,94012.0,94011.0,0.2126729]
[1745762728524,0.260828,94031.0,94030.0,0.21263]
[1745762728734,0.260828,94031.0,94030.0,0.28115]
[1745762729231,0.260828,94031.0,94030.0,0.40115]
[1745762729929,0.264828,94031.0,94030.0,0.40115]
[1745762730124,0.264828,94031.0,94030.0,0.40215]
[1745762730125,0.767828,94031.0,94030.0,0.40215]
[1745762730331,0.5552,94031.0,94030.0,0.40215]
[1745762730838,0.7678277,94031.0,94030.0,0.40215]
[1745762731135,0.8160277,94031.0,94030.0,0.40215]
[1745762731537,0.8160277,94031.0,94030.0,0.45175]
[1745762731926,0.6034,94031.0,94030.0,0.45175]
[1745762734242,0.8160277,94031.0,94030.0,0.45175]
[1745762736851,0.6034,94031.0,94030.0,0.45175]
[1745762737835,0.8160277,94031.0,94030.0,0.45175]
[1745762739833,0.6034,94031.0,94030.0,0.45175]
[1745762740833,0.8160277,94031.0,94030.0,0.45175]
[1745762744348,0.6034,94031.0,94030.0,0.45175]
[1745762744527,0.8160277,94031.0,94030.0,0.45175]
[1745762746644,0.8160277,94031.0,94030.0,0.40215]
[1745762747344,0.8160277,94031.0,94030.0,0.45145]
[1745762749236,0.010547,94055.0,94030.0,1.916508]
[1745762749532,0.0052,94068.0,94060.0,0.2125621]
[1745762749730,0.0052,94068.0,94060.0,0.3210421]
[1745762749731,1e-07,94061.0,94060.0,0.3210421]
[1745762749928,0.0967601,94078.0,94077.0,0.2125237]
[1745762750140,8e-08,94079.0,94078.0,0.2125215]
[1745762750331,0.0516,94097.0,94090.0,0.2124944]
[1745762750537,0.0516,94097.0,94090.0,0.5832944]
[1745762750736,0.00661739,94091.0,94090.0,0.5832944]
[1745762751045,0.00661739,94091.0,94090.0,0.5732944]
[1745762751243,0.50661739,94091.0,94090.0,0.7617744]
[1745762751540,0.50961739,94091.0,94090.0,0.7627744]
[1745762751742,0.50961739,94091.0,94090.0,0.4019744]
[1745762752938,0.51361739,94091.0,94090.0,0.4019744]
[1745762754041,0.56531739,94091.0,94090.0,0.4019744]
[1745762755344,0.56531739,94091.0,94090.0,0.3334944]
[1745762755650,0.56531739,94091.0,94090.0,0.4019344]
[1745762763251,0.51361739,94091.0,94090.0,0.4019344]
[1745762763441,0.4564773,94091.0,94090.0,0.5182144]
[1745762764049,0.1223926,94091.0,94090.0,1.2996144]
[1745762764250,0.00531739,94095.0,94094.0,0.2124853]
[1745762764451,9e-08,94095.0,94094.0,0.2424853]
[1745762764748,9e-08,94095.0,94094.0,0.9319413]
[1745762764946,9e-08,94095.0,94094.0,0.4520613]
[1745762765339,0.0522,94110.0,94094.0,0.4520613]
[1745762765340,0.0522,94110.0,94109.0,0.2124515]
[1745762765552,0.0522,94110.0,94109.0,0.6416515]
[1745762766051,0.0522,94110.0,94109.0,0.65245677]
[1745762766247,0.5522,94110.0,94109.0,0.7616515]
[1745762766866,0.5582,94110.0,94109.0,0.7626515]
[1745762767346,0.5652,94110.0,94109.0,0.7636515]
[1745762767750,0.5652,94110.0,94109.0,0.77411481]
[1745762773357,0.5652,94110.0,94109.0,0.78411481]
[1745762773553,0.4628034,94110.0,94109.0,1.25117481]
[1745762779255,0.4628034,94110.0,94109.0,1.14491481]
[1745762779847,0.6752526,94110.0,94109.0,0.7736115]
[1745762780255,0.6752526,94110.0,94109.0,0.6536115]
[1745762780757,0.5617034,94110.0,94109.0,0.6536115]
[1745762781546,0.5617034,94110.0,94109.0,0.6436115]
[1745762781948,0.7741526,94110.0,94109.0,0.42916]
[1745762782252,0.7741526,94110.0,94109.0,0.2865]
[1745762782455,0.7741526,94110.0,94109.0,0.5673115]
[1745762783047,0.7741526,94110.0,94109.0,0.06836]
[1745762783249,0.8941526,94110.0,94109.0,0.06836]
[1745762783560,0.8941526,94110.0,94104.0,0.2124607]
[1745762783561,0.2124605,94105.0,94104.0,0.2124607]
[1745762783763,0.2124605,94105.0,94104.0,0.2808207]
[1745762784262,0.3324605,94105.0,94104.0,0.2808207]
[1745762784563,0.3812605,94105.0,94104.0,0.2808207]
[1745762784959,0.8360605,94105.0,94104.0,0.2818207]
[1745762785663,0.8420605,94105.0,94104.0,0.2828207]
[1745762787066,0.7220605,94105.0,94104.0,0.2828207]
[1745762789958,0.7220605,94105.0,94104.0,0.002]
[1745762790153,0.7220605,94105.0,94104.0,0.07036]
[1745762790154,0.8283245,94105.0,94104.0,0.07036]
[1745762791165,0.212474,94099.0,94098.0,0.06836]
[1745762791359,0.2124763,94098.0,94093.0,0.2124863]
[1745762791560,0.2125102,94083.0,94082.0,0.01055988]
[1745762791764,0.5733102,94083.0,94082.0,0.06836]
[1745762791963,0.2125147,94081.0,94080.0,0.2125157]
[1745762792263,0.2125147,94081.0,94080.0,0.2808757]
[1745762792763,0.2599147,94081.0,94080.0,0.2808757]
[1745762793064,0.2599147,94081.0,94080.0,0.2818757]
[1745762793854,0.2609147,94081.0,94080.0,0.2145157]
[1745762794061,0.2609147,94081.0,94080.0,0.2828757]
[1745762794262,0.7107147,94081.0,94080.0,0.2828757]
[1745762799256,0.7107147,94081.0,94080.0,0.07036]
[1745762799770,0.7107147,94081.0,94080.0,0.282877]
[1745762800068,0.7107147,94081.0,94080.0,0.07036]
[1745762800365,0.7107147,94081.0,94080.0,0.282877]
[1745762802070,0.4508,94081.0,94080.0,0.515077]
[1745762803075,0.501,94081.0,94080.0,0.515077]
[1745762803575,0.4508,94081.0,94080.0,0.515077]
[1745762811174,0.4508,94081.0,94080.0,0.515037]
[1745762817670,0.4508,94081.0,94080.0,0.875837]
[1745762822269,0.4874,94081.0,94080.0,0.875837]
[1745762822667,0.5213,94081.0,94080.0,0.875837]
[1745762823570,0.7338147,94081.0,94080.0,0.57112]
[1745762823778,0.7694147,94081.0,94080.0,0.55112]
[1745762824174,0.7694147,94081.0,94080.0,0.643637]
[1745762828579,0.7694147,94081.0,94080.0,0.282837]
[1745762831784,0.7704147,94081.0,94080.0,0.281837]
[1745762832788,0.5579,94081.0,94080.0,0.281837]
[1745762832982,0.5569,94081.0,94080.0,0.280837]
[1745762833182,0.5579,94081.0,94080.0,0.311837]
[1745762833671,0.5599,94081.0,94080.0,0.310837]
[1745762834073,0.5619,94081.0,94080.0,0.431837]
[1745762834281,0.5619,94081.0,94080.0,0.487037]
[1745762834887,0.5629,94081.0,94080.0,0.487037]
[1745762835084,0.4924,94081.0,94080.0,0.487037]
[1745762840886,0.4924,94081.0,94080.0,0.847837]
[1745762843887,0.4924,94081.0,94080.0,1.735589]
[1745762843888,0.3687091,94081.0,94080.0,1.735589]
[1745762844095,0.0711,94101.0,94093.0,0.0531216]
[1745762844386,0.05753215,94101.0,94100.0,0.5732718]
[1745762844590,0.05753215,94101.0,94100.0,0.6615518]
[1745762845090,0.05753215,94101.0,94100.0,0.7815518]
[1745762845294,0.05753215,94101.0,94100.0,0.8506518]
[1745762846091,0.06253215,94101.0,94100.0,0.8506518]
[1745762846285,0.51,94101.0,94100.0,0.8506518]
[1745762846591,0.505,94101.0,94100.0,0.8506518]
[1745762846892,0.511,94101.0,94100.0,0.8516518]
[1745762847085,0.511,94101.0,94100.0,0.8526518]
[1745762847281,0.51,94101.0,94100.0,0.8526518]
[1745762847680,0.51,94101.0,94100.0,0.8180518]
[1745762847883,0.509,94101.0,94100.0,0.8170518]
[1745762851886,0.509,94101.0,94100.0,0.7825518]
[1745762852087,0.509,94101.0,94100.0,0.6625518]
[1745762852383,0.509,94101.0,94100.0,0.6625118]
[1745762853177,0.509,94101.0,94100.0,0.5942718]
[1745762853383,0.509,94101.0,94100.0,0.6625118]
[1745762855482,0.509,94101.0,94100.0,0.6967118]
[1745762857179,0.509,94101.0,94100.0,0.8167118]
[1745762858992,0.509,94101.0,94100.0,0.7825118]
[1745762870287,0.509,94101.0,94100.0,0.8156118]
[1745762872795,0.509,94101.0,94100.0,0.7825118]
[1745762873489,0.509,94101.0,94100.0,0.4217118]
[1745762873693,0.509,94101.0,94100.0,1.1433118]
[1745762876598,0.509,94101.0,94100.0,1.1432718]
[1745762876802,0.509,94101.0,94100.0,1.1812718]
[1745762877395,0.509,94101.0,94100.0,1.1432718]
[1745762884103,0.509,94101.0,94100.0,0.4216718]
[1745762884301,0.509,94101.0,94100.0,1.1432718]
[1745762885097,0.509,94101.0,94100.0,0.4216718]
[1745762885400,0.509,94101.0,94100.0,1.1432718]
[1745762897102,0.509,94101.0,94100.0,1.0232718]
[1745762899107,0.509,94101.0,94100.0,1.1432718]
[1745762901396,0.509,94101.0,94100.0,0.4216718]
[1745762901596,0.509,94101.0,94100.0,1.1432718]
[1745762908417,0.509,94101.0,94100.0,1.0232718]
[1745762908915,0.509,94101.0,94100.0,0.3016718]
[1745762909117,0.509,94101.0,94100.0,1.0232718]
[1745762916014,0.509,94101.0,94100.0,0.3016718]
[1745762916216,0.509,94101.0,94100.0,1.0232718]
[1745762919316,0.509,94101.0,94100.0,1.1295398]
[1745762919517,0.41846405,94101.0,94100.0,1.6173398]
[1745762919721,0.0447329,94117.0,94100.0,1.404868]
[1745762919912,0.0397,94110.0,94109.0,0.2655643]
[1745762920115,0.0397,94110.0,94109.0,0.7863643]
[1745762920516,0.0397,94110.0,94109.0,0.8240643]
[1745762920715,0.0397,94110.0,94109.0,0.83444796]
[1745762920915,0.0437,94110.0,94109.0,0.83544796]
[1745762921818,0.004,94110.0,94109.0,0.83544796]
[1745762922223,0.007,94110.0,94109.0,0.83544796]
[1745762934335,0.007,94110.0,94109.0,0.90352796]
[1745762935343,0.007,94110.0,94109.0,1.00978796]
[1745762938540,0.007,94110.0,94109.0,1.37058796]
[1745762939648,0.007,94110.0,94109.0,0.64898796]
[1745762939837,0.007,94110.0,94109.0,1.37058796]
[1745762940747,0.007,94110.0,94109.0,0.64898796]
[1745762940948,0.007,94110.0,94109.0,1.37058796]
[1745762941145,0.007,94110.0,94109.0,1.26432796]
[1745762942348,0.007,94110.0,94109.0,0.89298366]
[1745762942644,0.72406,94110.0,94109.0,0.06808]
[1745762942845,0.0531183,94100.0,94097.0,0.3608]
[1745762943042,0.287774,94099.0,94098.0,0.06808]
[1745762943344,0.2124966,94089.0,94088.0,0.3608]
[1745762943536,0.2125011,94087.0,94070.0,0.33258131]
[1745762943733,0.2125011,94087.0,94086.0,1.201]
[1745762943934,0.5687851,94087.0,94086.0,1.201]
[1745762944241,1.2202151,94087.0,94086.0,1.201]
[1745762944638,0.2125215,94078.0,94077.0,0.170563]
[1745762944841,0.212526,94076.0,94073.0,0.06808]
[1745762945045,0.212526,94076.0,94075.0,0.3263]
[1745762945242,1.220312,94076.0,94075.0,0.3263]
[1745762946337,1.220312,94076.0,94075.0,0.5388282]
[1745762946537,1.220312,94076.0,94075.0,0.54681947]
[1745762947347,0.441822,94076.0,94075.0,0.54881947]
[1745762947644,0.941822,94076.0,94075.0,0.54881947]
[1745762947840,1.299622,94076.0,94075.0,0.22151947]
[1745762948039,1.304622,94076.0,94075.0,0.22151947]
[1745762948442,1.381222,94076.0,94075.0,0.22151947]
[1745762948643,1.379222,94076.0,94075.0,0.22151947]
[1745762948835,1.381222,94076.0,94075.0,0.22151947]
[1745762949339,2.162712,94076.0,94075.0,0.00899127]
[1745762949540,2.159712,94076.0,94075.0,0.00799127]
[1745762949747,1.911712,94076.0,94075.0,0.001]
[1745762949943,1.380222,94076.0,94075.0,0.001]
[1745762950137,0.2125305,94074.0,94073.0,0.2806106]
[1745762950538,0.3188305,94074.0,94073.0,0.2806106]
[1745762950738,0.3954305,94074.0,94073.0,0.06808]
[1745762951347,0.3954305,94074.0,94073.0,0.07605851]
[1745762951348,0.5154305,94074.0,94073.0,0.07605851]
[1745762951549,0.5164305,94074.0,94073.0,0.07705851]
[1745762951748,1.0164305,94074.0,94073.0,0.28959131]
[1745762952047,1.0184305,94074.0,94073.0,0.28959131]
[1745762952351,1.0184305,94074.0,94073.0,0.07705851]
[1745762952942,1.0174305,94074.0,94073.0,0.28959131]
[1745762953439,1.0204305,94074.0,94073.0,0.07705851]
[1745762953638,1.0204305,94074.0,94073.0,0.28959131]
[1745762953840,0.9822305,94074.0,94073.0,0.28959131]
[1745762954748,0.9792305,94074.0,94073.0,0.28959131]
[1745762954950,0.9812305,94074.0,94073.0,0.28959131]
[1745762955350,1.0177305,94074.0,94073.0,0.28959131]
[1745762955752,1.0157305,94074.0,94073.0,0.28859131]
[1745762956057,1.0177305,94074.0,94073.0,0.07705851]
[1745762956441,1.0187305,94074.0,94073.0,0.07705851]
[1745762957445,1.0167305,94074.0,94073.0,0.07605851]
[1745762957644,1.0187305,94074.0,94073.0,0.07705851]
[1745762957852,1.0157305,94074.0,94073.0,0.07705851]
[1745762958049,1.0187305,94074.0,94073.0,0.07705851]
[1745762959944,1.0157305,94074.0,94073.0,0.07705851]
[1745762960251,1.0167305,94074.0,94073.0,0.07605851]
[1745762960455,1.0187305,94074.0,94073.0,0.07705851]
[1745762960850,1.0157305,94074.0,94073.0,0.07705851]
[1745762961052,1.0187305,94074.0,94073.0,0.00897851]
[1745762961953,1.0167305,94074.0,94073.0,0.00797851]
[1745762962149,1.0187305,94074.0,94073.0,0.001]
[1745762963148,0.2125328,94073.0,94072.0,0.10768]
[1745762963544,0.2881328,94073.0,94072.0,0.10768]
[1745762964254,0.8705328,94073.0,94072.0,0.358215]
[1745762964846,0.8705328,94073.0,94072.0,0.36600896]
[1745762965655,0.8755328,94073.0,94072.0,0.36700896]
[1745762968446,0.8755328,94073.0,94072.0,0.15447396]
[1745762968958,0.8735328,94073.0,94072.0,0.15347396]
[1745762969158,0.8755328,94073.0,94072.0,0.15447396]
[1745762971062,0.7555328,94073.0,94072.0,0.15447396]
[1745762971449,0.7555328,94073.0,94072.0,0.36700896]
[1745762972944,0.7175328,94073.0,94072.0,0.36700896]
[1745762974259,0.7175328,94073.0,94072.0,0.29892896]
[1745762974454,0.7175328,94073.0,94072.0,0.36700896]
[1745762976956,0.505,94073.0,94072.0,0.36700896]
[1745762977156,0.7175328,94073.0,94072.0,0.38700896]
[1745762981567,0.7175328,94073.0,94072.0,0.36700896]
[1745762982768,0.505,94073.0,94072.0,0.36700896]
[1745762983561,0.7175328,94073.0,94072.0,0.37700896]
[1745762988568,0.7175328,94073.0,94072.0,0.36700896]
[1745762991055,0.7175328,94073.0,94072.0,0.37700896]
[1745762997761,0.7175328,94073.0,94072.0,0.16447396]
[1745762998162,1.1983328,94073.0,94072.0,0.08639396]
[1745762998565,1.2323328,94073.0,94072.0,0.08639396]
[1745762999164,1.1123328,94073.0,94072.0,0.08639396]
[1745763000565,0.7515328,94073.0,94072.0,0.08639396]
[1745763000874,1.1123328,94073.0,94072.0,0.08639396]
[1745763002463,1.1123328,94073.0,94072.0,0.00879396]
[1745763002969,0.2125418,94069.0,94068.0,0.068]
[1745763003867,0.2478418,94069.0,94068.0,0.068]
[1745763004064,0.3678418,94069.0,94068.0,0.068]
[1745763004465,0.3698418,94069.0,94068.0,0.068]
[1745763004973,1.2326418,94069.0,94068.0,0.069]
[1745763005175,1.2326418,94069.0,94068.0,0.07691423]
[1745763006172,1.1126418,94069.0,94068.0,0.07691423]
[1745763007870,1.1126418,94069.0,94068.0,0.11131423]
[1745763008280,1.1126418,94069.0,94068.0,0.14561423]
[1745763008775,0.7518418,94069.0,94068.0,0.14561423]
[1745763008978,1.1126418,94069.0,94068.0,0.14561423]
[1745763011385,1.0773418,94069.0,94068.0,0.14561423]
[1745763018878,1.0773418,94069.0,94068.0,0.1377]
[1745763023591,1.0773418,94069.0,94068.0,0.0697]
[1745763030088,1.0773418,94069.0,94068.0,0.2822441]
[1745763031190,1.0773418,94069.0,94068.0,0.4022441]
[1745763040290,0.7165418,94069.0,94068.0,0.4022441]
[1745763041785,0.7165418,94069.0,94068.0,0.1897]
[1745763041989,0.7513418,94069.0,94068.0,0.1897]
[1745763042198,0.7513418,94069.0,94068.0,0.0697]
[1745763045993,1.1121418,94069.0,94068.0,0.0697]
[1745763046704,0.7513418,94069.0,94068.0,0.0697]
[1745763047085,1.1121418,94069.0,94068.0,0.0697]
[1745763054992,0.7513418,94069.0,94068.0,0.0697]
[1745763055290,1.1121418,94069.0,94068.0,0.0697]
[1745763067103,1.1101418,94069.0,94068.0,0.0697]
[1745763067310,1.1141418,94069.0,94068.0,0.0707]
[1745763067506,1.1161418,94069.0,94068.0,0.0707]
[1745763067909,1.0813418,94069.0,94068.0,0.0707]
[1745763068307,1.0813418,94069.0,94068.0,0.1907]
[1745763072214,0.2126051,94042.0,94040.0,0.05421507]
[1745763072422,0.2126051,94042.0,94041.0,0.06788]
[1745763072709,0.2126051,94042.0,94041.0,0.10788]
[1745763072914,0.2126051,94042.0,94041.0,0.07593238]
[1745763073114,0.2126051,94042.0,94041.0,0.19593238]
[1745763073315,0.2503051,94042.0,94041.0,0.19593238]
[1745763073618,0.7503051,94042.0,94041.0,0.19593238]
[1745763073914,0.7513051,94042.0,94041.0,0.19593238]
[1745763074116,0.7513051,94042.0,94041.0,0.19893238]
[1745763074316,0.7513051,94042.0,94041.0,0.20093238]
[1745763074512,0.7513028,94042.0,94041.0,0.06792]
[1745763074918,0.7146028,94042.0,94041.0,0.2825251]
[1745763075109,0.7146028,94042.0,94041.0,0.4025251]
[1745763075619,0.7136028,94042.0,94041.0,0.4025251]
[1745763075912,0.7146028,94042.0,94041.0,0.4045251]
[1745763076118,0.7146028,94042.0,94041.0,0.4760251]
[1745763076318,0.7146028,94042.0,94041.0,0.48399373]
[1745763076512,0.7166028,94042.0,94041.0,0.48099373]
[1745763077109,0.7186028,94042.0,94041.0,0.48099373]
[1745763079125,0.7186028,94042.0,94041.0,0.41307373]
[1745763079332,0.7186028,94042.0,94041.0,0.20046863]
[1745763079529,0.7551028,94042.0,94041.0,0.20046863]
[1745763080527,0.7551028,94042.0,94041.0,0.41307373]
[1745763080716,0.7186028,94042.0,94041.0,0.41307373]
[1745763080917,0.7186028,94042.0,94041.0,0.20046863]
[1745763081225,0.7551028,94042.0,94041.0,0.20046863]
[1745763083423,1.1159028,94042.0,94041.0,0.20046863]
[1745763086321,1.0794028,94042.0,94041.0,0.41307373]
[1745763087922,1.1153028,94042.0,94041.0,0.41307373]
[1745763089726,0.7545028,94042.0,94041.0,0.41307373]
[1745763089930,1.1153028,94042.0,94041.0,0.41307373]
[1745763095435,1.1153028,94042.0,94041.0,0.20046863]
[1745763097236,1.1153028,94042.0,94041.0,0.19346863]
[1745763097735,1.1153028,94042.0,94041.0,0.05146863]
[1745763097938,1.1537028,94042.0,94041.0,0.05146863]
[1745763098139,1.1537028,94042.0,94041.0,0.17146863]
[1745763098736,1.1537028,94042.0,94041.0,0.16746863]
[1745763099440,1.1537028,94042.0,94041.0,0.13246863]
[1745763099740,1.1537028,94042.0,94041.0,0.12246863]
[1745763100640,1.1537028,94042.0,94041.0,0.11846863]
[1745763101140,1.1537028,94042.0,94041.0,0.02546863]
[1745763102241,0.2126051,94041.0,94040.0,0.02246863]
[1745763102738,0.2516051,94041.0,94040.0,0.01846863]
[1745763102936,0.2516051,94041.0,94040.0,0.23107593]
[1745763103134,0.2516051,94041.0,94040.0,0.13846863]
[1745763103338,0.2516051,94041.0,94040.0,0.14630772]
[1745763103540,0.2546051,94041.0,94040.0,0.18330772]
[1745763103943,0.2546051,94041.0,94040.0,0.17930772]
[1745763104236,0.7546051,94041.0,94040.0,0.17930772]
[1745763104541,0.7546051,94041.0,94040.0,0.15330772]
[1745763104937,0.7566051,94041.0,94040.0,0.15330772]
[1745763105141,0.7566051,94041.0,94040.0,0.32591502]
[1745763105441,0.7176051,94041.0,94040.0,0.32591502]
[1745763105637,0.0584595,94045.0,94044.0,0.2125983]
[1745763105638,0.00531,94045.0,94044.0,0.2125983]
[1745763105832,0.00531,94045.0,94044.0,0.2225983]
[1745763106030,0.2125855,94050.0,94049.0,0.2125847]
[1745763106243,0.2125855,94050.0,94049.0,0.2225847]
[1745763107043,0.2125855,94050.0,94049.0,0.3425847]
[1745763107343,0.7125855,94050.0,94049.0,0.3425847]